Cogmind - Beta 16 @@@ ROGUE MODE // 2026.02.09 @ 03:47:48 Player: AngelSpirit Result: Destroyed by 9S-U1R(R) with Subdweller Laser Performance ------------- Evolutions (0) 0 Regions Visited (2) 400 Robots Destroyed (31) 155 Value Destroyed (864) 864 Prototype IDs (0) 0 Alien Tech Used (0) 0 Bonus (0) 0 TOTAL SCORE: 1419 Bonus ------- None Cogmind --------- Core Integrity 0/250 Matter 257/300 Energy 106/200 System Corruption 0% Temperature Cool (6) Movement Treading (160) Location -10/Subcaves Parts ------- > --- POWER (1) -------- Subdweller Power Source > --- PROPULSION (2) --- Spiked Treads Spiked Treads > --- UTILITY (2) ------ (None) > --- WEAPON (2) ------- Subdweller Beam Cannon Heavy Battle Rifle > --- INVENTORY (5) ---- Wheel Large Storage Unit Sensor Array Grenade Launcher Shrapnel Trap Peak State ------------ > --- POWER ------------ Subdweller Power Source > --- PROPULSION ------- Spiked Treads Spiked Treads > --- UTILITY ---------- Scrap Shield > --- WEAPON ----------- Subdweller Beam Cannon Heavy Battle Rifle > --- INVENTORY -------- Large Storage Unit Sensor Array Grenade Launcher Shrapnel Trap [Rating: 16] Favorites ----------- Power Ion Engine Engine Ion Engine Propulsion Wheel Treads Spiked Treads Wheel Wheel Utility Large Storage Unit Device Seismic Detector Storage Large Storage Unit Protection Scrap Shield Weapon Assault Rifle Energy Gun Subdweller Laser Energy Cannon Subdweller Beam Cannon Ballistic Gun Assault Rifle Ballistic Cannon Light Cannon Launcher Grenade Launcher Slashing Weapon Makeshift Axe Build | -11 -10 -10 ------- Run | Yrd Mat Sub Slots Evolved . | . . . Power . | . . . Propulsion . | . . . Utility . | . . . Weapon . | . . . Parts Attached 36 | 8 8 20 Power 3 | 1 . 2 Engine 3 | 1 . 2 Core . | . . . Reactor . | . . . Propulsion 12 | 4 1 7 Treads 4 | . . 4 Leg . | . . . Wheel 8 | 4 1 3 Hover . | . . . Flight . | . . . Utility 11 | 1 4 6 Device 1 | . 1 . Storage 5 | 1 3 1 Processor . | . . . Hackware . | . . . Protection 5 | . . 5 Artifact . | . . . Weapon 10 | 2 3 5 Energy Gun 2 | . . 2 Energy Cannon 1 | . . 1 Ballistic Gun 3 | 2 . 1 Ballistic Cannon 2 | . 2 . Launcher 1 | . 1 . Special Weapon . | . . . Impact Weapon . | . . . Slashing Weapon 1 | . . 1 Piercing Weapon . | . . . Special Melee Weapon . | . . . Unidentified Prototypes . | . . . Parts Lost 9 | . 2 7 Power 1 | . . 1 Propulsion 4 | . 2 2 Utility 2 | . . 2 Weapon 2 | . . 2 Highest Loss Streak 4 | . 1 4 To Critical Strikes . | . . . Average Backups 9 | 2 9 9 Power . | . 1 . Propulsion 3 | 1 3 3 Utility 3 | . 3 3 Weapon 1 | . 1 1 Tool/Special . | . . . Unused Backups 8 | . 1 7 Power . | . . . Propulsion 2 | . . 2 Utility 4 | . 1 3 Weapon 1 | . . 1 Tool/Special 1 | . . 1 Average Slot Usage (%) 92 | . 98 88 Engine 12 | . 14 11 Treads 10 | . . 17 Wheel 17 | . 27 10 Device 5 | . 13 . Storage 9 | . 14 6 Protection 7 | . . 12 Energy Gun 3 | . . 5 Energy Cannon 2 | . . 4 Ballistic Gun 11 | . 22 4 Ballistic Cannon 8 | . 5 10 Slashing Weapon 1 | . . 2 Peak Build Rating 16 | 6 8 16 Average Rating 10 | 5 7 12 On Entrance 4 | . 6 8 Avg Prop Armor Cover (%) 6 | . . 6 Naked Turns . | . . . Heaviest Build 95 | 14 32 95 Greatest Support 40 | 32 26 40 Greatest Overweight (x) 5 | . 2 5 Average Overweight (x) 1 | . . 1 Largest Inventory Capacity 25 | 8 15 25 Average Capacity 13 | 7 14 13 Most Carried 18 | 5 15 18 Average Carried 9 | 2 9 9 Final Capacity 15 | 8 15 5 Final Carried 14 | 5 14 5 Class Distribution -------------------- 78% | Mutant 20% | Subdweller-Mutant Dominant Class ---------------- Mutant | -10/Materials Mutant | -10/Subcaves Resources | -11 -10 -10 ----------- Run | Yrd Mat Sub Matter Collected 1308 | 296 488 524 Remotely . | . . . Salvage Created 1109 | 97 665 347 Parts 72 | 11 44 17 Haulers Intercepted 2 | . 2 . Recyclers Shooed 1 | . 1 . Parts Field Recycled . | . . . Retrieved Matter . | . . . Parts Self-Destructed 10 | . . 10 Prevented . | . . . Parts Restored . | . . . Kills | -11 -10 -10 ------- Run | Yrd Mat Sub Combat Hostiles Destroyed 19 | . 9 10 Guns 10 | . 9 1 Cannons 9 | . . 9 Classes Destroyed 8 | 1 5 2 Tunneler 4 | 4 . . Hauler 2 | . 2 . Recycler 1 | . 1 . Operator 2 | . 2 . Watcher 3 | . 3 . Grunt 11 | . 9 2 Artisan 1 | . . 1 Subdweller 8 | . . 8 Best Kill Streak 4 | 2 4 3 Combat Bots Only 3 | . 2 3 Max Kills in Single Turn 2 | 2 1 1 Gunslinging . | . . . Exploded . | . . . Melee . | . . . Uniques/NPCs Destroyed . | . . . Combat | -11 -10 -10 -------- Run | Yrd Mat Sub Hostile Shots Fired 116 | . 33 83 Missed 37 | . 12 25 Hits 79 | . 21 58 Projectile 79 | . 21 58 AOE 4 | . . 4 Critical Strikes 2 | . 1 1 Damage Taken 1758 | . 295 1463 Core 262 | . 52 210 Absorbed by Shields . | . . . Core Remaining (%) 100 | 100 . . Volleys Fired 136 | 6 59 71 Largest 2 | 2 2 2 Hottest 113 | 40 40 113 Shots Fired 243 | 12 117 114 Gun 169 | 12 116 41 Cannon 73 | . . 73 Launcher 1 | . 1 . Special . | . . . Kinetic 210 | 12 116 82 Thermal 32 | . . 32 Explosive 1 | . 1 . Electromagnetic . | . . . Robot Hit Streak 18 | 4 8 18 Robot Miss Streak 5 | 4 5 4 Penetration Max . | . . . Secondary Targets . | . . . Shots Hit Robots 157 | 6 74 77 Core Hits 56 | 4 32 20 Critical Kills . | . . . Critical Parts Destroyed . | . . . Critical Strikes 2 | . . 2 Blast 2 | . . 2 Melee Attacks 12 | . . 12 Impact . | . . . Slashing 12 | . . 12 Piercing . | . . . Sneak Attacks . | . . . Combat Hostiles . | . . . Follow-up Attacks . | . . . Damage Inflicted 2594 | 82 970 1542 Guns 1579 | 82 970 527 Cannons 982 | . . 982 Explosions . | . . . Melee 33 | . . 33 Ramming . | . . . Kinetic 1961 | 82 970 909 Thermal 600 | . . 600 Explosive . | . . . Electromagnetic . | . . . Impact . | . . . Slashing 33 | . . 33 Piercing . | . . . Highest Corruption . | . . . Average Corruption . | . . . Corruption Purged . | . . . Corruption Blocked . | . . . Overload Shots . | . . . Overflow Damage . | . . . Projectiles . | . . . Explosions . | . . . Melee . | . . . Knockbacks 6 | . . 6 Impact . | . . . Kinetic 5 | . . 5 Secondary 1 | . . 1 Self-Inflicted Damage . | . . . Shots . | . . . Rammed . | . . . Targets Rammed . | . . . Kicked . | . . . Crushed . | . . . Highest Temperature 20 | . 20 7 Average Temperature 3 | . 4 2 Received Heat Transfer 444 | . 186 258 Siege Activations . | . . . Martial Activations . | . . . Shielding Activations . | . . . Robots Disrupted . | . . . Combat Hostiles . | . . . Robots Corrupted . | . . . Combat Hostiles . | . . . Parts Fried . | . . . Impact Corruptions . | . . . Robots Melted . | . . . Combat Hostiles . | . . . Parts Melted . | . . . Heat Transferred 769 | . . 769 Parts Sabotaged . | . . . Parts Stolen . | . . . Parts Stripped . | . . . Power Chain Reactions . | . . . Alert | -11 -10 -10 ------- Run | Yrd Mat Sub Maximum Alert Level . | . . . Low Security (%) 100 | 100 100 . Level 1 . | . . . Level 2 . | . . . Level 3 . | . . . Level 4 . | . . . Level 5 . | . . . High Security . | . . . Max Security . | . . . Peak Influence 110 | 10 110 . Initial . | . . . Average 28 | . 31 . Influence Increases 415 | 20 345 50 Destroy 0b10 Robot/C 220 | . 180 40 Destroy 0b10 Robot/NC 60 | 20 40 . Destroy Leader 70 | . 60 10 Successful Hack 11 | . 11 . Select Force Hacks 30 | . 30 . Destroy Structure 9 | . 9 . Lose Combat Pursuer 15 | . 15 . Influence Decreases 415 | 20 345 50 Time Decay 379 | 20 327 32 Lost Part 36 | . 18 18 Squads Dispatched 2 | . 2 . Investigation 1 | . 1 . Extermination . | . . . Reinforcement 1 | . 1 . Assault . | . . . Garrison . | . . . Intercept . | . . . Searches Triggered . | . . . Construction Impeded . | . . . Haulers Reinforced . | . . . Active Scanning Responses . | . . . Cargo Convoy Interrupts . | . . . Stealth | -11 -10 -10 --------- Run | Yrd Mat Sub Distress Signals . | . . . Communications Jammed . | . . . Distress Signals . | . . . Times Spotted 29 | . 15 14 Peak Tracking Total 3 | . 3 3 Tactical Retreats 4 | . 1 3 Traps | -11 -10 -10 ------- Run | Yrd Mat Sub Traps Triggered 1 | . . 1 Indirectly . | . . . Trap Hack Attempts . | . . . Triggered . | . . . Disarmed . | . . . Reprogrammed . | . . . Reused . | . . . Traps Extracted . | . . . Installed . | . . . Triggered . | . . . Most Traps Carried 1 | . . 1 Machines | -11 -10 -10 ---------- Run | Yrd Mat Sub Machines Disabled . | . . . Max in Single Turn . | . . . Machines Repaired . | . . . Machines Dismantled . | . . . Machines Sabotaged . | . . . Overloaded Fab Kills . | . . . Hacking | -11 -10 -10 --------- Run | Yrd Mat Sub Machines Accessed 10 | . 10 . Terminals 7 | . 7 . Fabricators . | . . . Repair Stations 1 | . 1 . Recycling Units 2 | . 2 . Scanalyzers . | . . . Garrison Access . | . . . Total Hacks 28 | . 28 . Successful 11 | . 11 . Failed 17 | . 17 . Catastrophic 1 | . 1 . Database Lockouts . | . . . Manual 22 | . 22 . Terminals 21 | . 21 . Fabricators . | . . . Repair Stations 2 | . 2 . Recycling Units 5 | . 5 . Scanalyzers . | . . . Garrison Access . | . . . Terminal Hacks 1 | . 1 . Locate Traps 1 | . 1 . Fabricator Hacks . | . . . Repair Station Hacks . | . . . Recycling Unit Hacks . | . . . Scanalyzer . | . . . Garrison Access Hacks . | . . . Unauthorized Hacks 10 | . 10 . Terminals 9 | . 9 . Botnet 4 | . 4 . Skim 5 | . 5 . Fabricators . | . . . Repair Stations . | . . . Recycling Units 1 | . 1 . Tunnel 1 | . 1 . Scanalyzers . | . . . Garrison Access . | . . . Data Cores Recovered 1 | . 1 . Used . | . . . Hacking Detections 9 | . 9 . Full Trace Events 1 | . 1 . Feedback Events . | . . . Feedback Blocked . | . . . Robot Schematics Acquired . | . . . Robots Built . | . . . Authchips . | . . . Time . | . . . Total Robot Build Rating . | . . . Part Schematics Acquired . | . . . Parts Built . | . . . Authchips . | . . . Time . | . . . Total Part Build Rating . | . . . Part Studies Acquired . | . . . Parts Repaired . | . . . Time . | . . . Parts Recycled . | . . . Recycled Matter . | . . . Retrieved Matter . | . . . Retrieved Components . | . . . Parts Scanalyzed . | . . . Part Schematics Acquired . | . . . Parts Damaged . | . . . Bothacking | -11 -10 -10 ------------ Run | Yrd Mat Sub Used RIF Installer . | . . . Robots Hacked . | . . . Non-combat . | . . . Combat . | . . . Robot Hacks Applied . | . . . Relay Couplers Released . | . . . Fabnet Peak Effective % . | . . . Robots Rewired . | . . . Allies Hacked . | . . . Hacks Repelled . | . . . Allies | -11 -10 -10 -------- Run | Yrd Mat Sub Total Allies . | . . . Largest Group . | . . . Highest-Rated Group . | . . . Highest-Rated Ally . | . . . Total Orders . | . . . Ally Attacks . | . . . Total Damage . | . . . Kills . | . . . Allies Corrupted . | . . . Allies Melted . | . . . Intel | -11 -10 -10 ------- Run | Yrd Mat Sub Active Infowar (turns) 1068 | . 995 73 Seismic 1068 | . 995 73 Robot Analysis Total . | . . . Derelict Logs Recovered 1 | . . 1 Drone Launches . | . . . Drone Recoveries . | . . . Exploration | -11 -10 -10 ------------- Run | Yrd Mat Sub Turns Passed 2687 | 109 1032 1546 Spaces Moved 1664 | 75 747 842 Core 1 | 1 . . Treads 310 | . . 310 Legs . | . . . Wheels 1353 | 74 747 532 Hover . | . . . Flight . | . . . Fastest Speed 50 | 50 80 90 Average Speed 125 | 99 101 150 Slowest Speed 320 | 100 110 320 Overloaded Moves . | . . . Propulsion Burnouts . | . . . Robots Hopped . | . . . Potential Cave-ins . | . . . Cave-ins Triggered . | . . . Exploration Rate (%) 48 | 4 100 42 Regions Visited 2 Branch Regions 1 Pre-discovered Areas 3 | . 1 2 Known Exits Taken 1 | . 1 . Unknown Exits Taken 1 | 1 . . Scrap Searched 8 | . . 8 Spaces Dug 8 | . 8 . Terrain Destroyed 10 | . 8 2 Melee . | . . . Projectile 2 | . . 2 AOE 8 | . 8 . Terrain Rammed . | . . . Walls Destroyed . | . . . Machines Disabled . | . . . Actions | -11 -10 -10 --------- Run | Yrd Mat Sub Total 2001 | 93 906 1002 Wait 78 | . 69 9 Move 1662 | 74 746 842 Hop . | . . . Pick Up 29 | 5 13 11 Fast Attach 19 | 6 3 10 Attach 10 | . 3 7 Detach 2 | . 1 1 Swap 21 | 2 6 13 Drop 31 | . 6 25 Fire 136 | 6 59 71 Melee 12 | . . 12 Ram . | . . . Kick . | . . . Crush . | . . . Escape Stasis . | . . . Rewire . | . . . Trap . | . . . Miscellaneous 1 | . . 1 Route ------- -11/Scrapyard -10/Materials (discovered 5 exits: *Mat x3 / [*Min] / *Sub) -10/Subcaves (discovered 2 exits: Mat x2) History --------- Turn | Location | Event 11 | -11/Scrapyard | Discovered new exit (range 16) 110 | -11/Scrapyard | Entered Materials 326 | -10/Materials | Build established: Mutant 376 | -10/Materials | Discovered new exit (range 12) 505 | -10/Materials | Discovered new exit (range 15) 510 | -10/Materials | Learned Storage emergency access door positions 568 | -10/Materials | Learned location of 1 exit from Recycling 591 | -10/Materials | Discovered new exit (range 3) 615 | -10/Materials | Loaded intel: 5 trap records 651 | -10/Materials | Identified exit to Materials 691 | -10/Materials | Learned 4 Recycling zone layouts 698 | -10/Materials | Identified exit to Subcaves 745 | -10/Materials | Learned 4 Materials zone layouts 1142 | -10/Materials | Entered Subcaves 1143 | -10/Subcaves | Approached by a straggling Scientist 1143 | -10/Subcaves | Identified exit to Materials 1162 | -10/Subcaves | Learned location of Zion (-6) 1162 | -10/Subcaves | Met a Zionite searching for "candidates" 1538 | -10/Subcaves | Ambushed by Subdweller buried in earth 1559 | -10/Subcaves | Core integrity fell below 50% 1583 | -10/Subcaves | Lost 4 parts (1p1n1u1w) 1641 | -10/Subcaves | Learned location of Storage (-7) 1915 | -10/Subcaves | Shifting Twisted Machinery released Spk. Treads 1951 | -10/Subcaves | Shifting Twisted Machinery released Sub. Laser 2010 | -10/Subcaves | Core integrity fell below 20% 2402 | -10/Subcaves | Build established: Subdweller-Mutant 2569 | -10/Subcaves | A swath of the cavern ceiling suddenly collapsed 2688 | -10/Subcaves | Destroyed by 9S-U1R(R) with Subdweller Laser Last Messages --------------- 02228_ Dropped Com. Wheel. 02229_ Acquired Spk. Treads. 02232_ Acquired Wheel. 02241_ Searching scrap... 02241_ Found Sub. Monowheel. 02241_ Found 67 Matter. 02242_ Acquired 10 matter. 02558_ 4L-CAC(R) destroyed. 02569_ 37 Matter crushed. 02569_ Sub. Power Source crushed. 02569_ Sub. Laser crushed. A swath of the cavern ceiling suddenly collapses. 02602_ Acquired 33 matter. 02654_ Scrap Shield destroyed. 02668_ Subatomizers dissect the Sub. Optics. 02672_ DC-95X(R) destroyed. 02679_ Subatomizers dissect the Sub. Optics. 02685_ 9S-U1R(R) affixes Scrap Shield Fragment to Scrap Shield. Map ----- +----------------------------------------------------+ | ???????????????????#??????## ######???#### # | | ????????????????